Workbook

Sheet NCHRP 9-40A
A1: v 0.1 | B1: OKLAHOMA DEPARTMENT OF TRANSPORTATION
B2: Calibration Shot Record NCHRP 9-40A | W2: Pick Lists: | X2: Typical Use:
A3: Calibrator | P3: %Shot | R3: 1
A4: Project No. | F4: J.P. No. | K4: %Residual | M4: 0.621 | P4: Binder Type | R4: Emulsion | W4: BinderType | X4: Typical Use Type | Y4: Typical 2 Use Type | Z4: Typical 3 Use Type
A5: Contractor | F5: Contract | K5: Specific Gravity | M5: 1.0121 | P5: =R4 & " (°F)" -> Emulsion (°F) | Q5: =R4 & " (°F)" -> Emulsion (°F) | R5: 160 | W5: Cutback | X5: Prime Coat | Y5: Tack Coat
A6: P/S Name | F6: P/S code | K6: Spec. Rate Gal/SY | M6: 0.1 | P6: Spec. Type | R6: Raw/Original | W6: Emulsion | X6: Tack Coat | Y6: Fog Seal | Z6: Prime Coat
P7: Use Type | R7: Tack Coat
A8: Date | B8: 2016-04-13 | F8: Dist. ID | K8: Dist. Rate Gal/SY | M8: 0.1 | P8: Dist. Speed mpg | W8: Asphalt Cement | X8: Tack Coat | Y8: Fabric
W9: Performance Grade | X9: Fabric
A10: Pad/ID | B10: Pad Initial | C10: Extra Wt. (g) | D10: Final Wt. | E10: Net | F10: Residual | G10: =R4 -> Emulsion | I10: Mult. | X10: <-Additional
A11: Number | B11: Wt. (g) | C11: Bag, etc. | D11: Total (g) | E11: Wt. (g) | F11: Gal/SY | G11: Gal/SY | I11: Factor
A12: 1 | B12: 25.3 | C12: 0 | D12: 69.4 | E12: =IF(D12="","",D12-C12-B12) -> 44.1 | F12: =IF($E12="","",$E12*0.000264*9/($M$5*mf($R$4,$R$5))*$M$4) -> 0.06593994573 | G12: =IF($E12="","",$E12*0.000264*9/($M$5*mf($R$4,$R$5))) -> 0.1061834875 | I12: =mf($R$4,$R$5) -> 0.975 | W12: UseType
A13: 2 | B13: 25 | C13: 0 | D13: 61.7 | E13: =IF(D13="","",D13-C13-B13) -> 36.7 | F13: =IF($E13="","",$E13*0.000264*9/($M$5*mf($R$4,$R$5))*$M$4) -> 0.05487519293 | G13: =IF($E13="","",$E13*0.000264*9/($M$5*mf($R$4,$R$5))) -> 0.08836585014 | W13: Prime Coat
A14: 3 | B14: 25.5 | C14: 0 | D14: 69.1 | E14: 43.6 | F14: =IF($E14="","",$E14*0.000264*9/($M$5*mf($R$4,$R$5))*$M$4) -> 0.0651923273 | G14: =IF($E14="","",$E14*0.000264*9/($M$5*mf($R$4,$R$5))) -> 0.1049795931 | I14: Average | J14: Residual | K14: Emuslion | W14: Tack Coat
A15: 4 | B15: 25.5 | C15: 0 | D15: 71.4 | E15: 45.9 | F15: =IF($E15="","",$E15*0.000264*9/($M$5*mf($R$4,$R$5))*$M$4) -> 0.06863137209 | G15: =IF($E15="","",$E15*0.000264*9/($M$5*mf($R$4,$R$5))) -> 0.1105175074 | J15: Gal/SY | K15: Gal/SY | W15: Fog Seal
A16: 5 | B16: 24.9 | C16: 0 | D16: 65.4 | E16: 40.5 | F16: =IF($E16="","",$E16*0.000264*9/($M$5*mf($R$4,$R$5))*$M$4) -> 0.06055709302 | G16: =IF($E16="","",$E16*0.000264*9/($M$5*mf($R$4,$R$5))) -> 0.0975154477 | I16: Total | J16: =F46 -> 0.05773483344 | K16: =G46 -> 0.09297074628 | W16: Fabric
A17: 6 | B17: 26.6 | C17: 0 | D17: 65.3 | E17: 38.7 | F17: =IF($E17="","",$E17*0.000264*9/($M$5*mf($R$4,$R$5))*$M$4) -> 0.05786566666 | G17: =IF($E17="","",$E17*0.000264*9/($M$5*mf($R$4,$R$5))) -> 0.0931814278 | I17: Bot. Trans. | J17: =IF(OR(F32<>"",F42<>"",COUNT(F37:F39)>0,COUNT(F34:F35)>0),AVERAGE(F32,F37:F39,F42,F34:F35),"") -> 0.05827151667 | K17: =IF(OR(G32<>"",G42<>"",COUNT(G37:G39)>0,COUNT(G34:G35)>0),AVERAGE(G32,G37:G39,G42,G34:G35),"") -> 0.09383497048 | X17: <-Additional
F18: =IF($E18="","",$E18*0.000264*9/($M$5*mf($R$4,$R$5))*$M$4) ->  | G18: =IF($E18="","",$E18*0.000264*9/($M$5*mf($R$4,$R$5))) ->  | I18: Top. Trans. | J18: =IF(COUNT(F12:F19)>0,AVERAGE(F12:F19,F18),"") -> 0.06220185357 | K18: =IF(OR(G32<>"",G42<>"",COUNT(G37:G39)>0,COUNT(G34:G35)),AVERAGE(G32,G37:G39,G42,G34:G35),"") -> 0.09383497048
A19: 8 | B19: 25.2 | C19: 0 | D19: 66.9 | E19: 41.7 | F19: =IF($E19="","",$E19*0.000264*9/($M$5*mf($R$4,$R$5))*$M$4) -> 0.06235137726 | G19: =IF($E19="","",$E19*0.000264*9/($M$5*mf($R$4,$R$5))) -> 0.1004047943 | I19: Trans. | J19: =IF(OR(F32<>"",F42<>"",F18<>"",COUNT(F37:F39)>0,COUNT(F34:F35)>0,COUNT(F12:F19)>0),AVERAGE(F32,F37:F39,F42,F34:F35,F12:F19,F18),"") -> 0.06023668512 | K19: =IF(OR(G32<>"",G42<>"",G18<>"",COUNT(G37:G39)>0,COUNT(G34:G35)>0,COUNT(G12:G19)>0),AVERAGE(G32,G37:G39,G42,G34:G35,G12:G19,G18),"") -> 0.09699949295 | W19: SpecType
F20: =IF($E20="","",$E20*0.000264*9/($M$5*mf($R$4,$R$5))*$M$4) ->  | G20: =IF($E20="","",$E20*0.000264*9/($M$5*mf($R$4,$R$5))) ->  | I20: Lt Long. | J20: =IF(COUNT(F26:F30)>0,AVERAGE(F26:F30),"") -> 0.05592185874 | K20: =IF(COUNT(G26:G30)>0,AVERAGE(G26:G30),"") -> 0.09005130232 | W20: Diluted
A21: 10 | B21: 25.9 | C21: 0 | D21: 68.2 | E21: 42.3 | F21: =IF($E21="","",$E21*0.000264*9/($M$5*mf($R$4,$R$5))*$M$4) -> 0.06324851938 | G21: =IF($E21="","",$E21*0.000264*9/($M$5*mf($R$4,$R$5))) -> 0.1018494676 | I21: Rt. Long. | J21: =IF(COUNT(F21:F25)>0,AVERAGE(F21:F25),"") -> 0.05254262343 | K21: =IF(COUNT(G21:G25)>0,AVERAGE(G21:G25),"") -> 0.08460969956 | W21: Raw/Original
A22: 11 | B22: 26.1 | C22: 0 | D22: 39.3 | E22: 13.2 | F22: =IF($E22="","",$E22*0.000264*9/($M$5*mf($R$4,$R$5))*$M$4) -> 0.01973712661 | G22: =IF($E22="","",$E22*0.000264*9/($M$5*mf($R$4,$R$5))) -> 0.03178281258 | I22: Long. | J22: =IF(OR(COUNT(F26:F30)>0,COUNT(F21:F25)>0),AVERAGE(F26:F30,F21:F25),"") -> 0.05423224108 | K22: =IF(OR(COUNT(G26:G30)>0,COUNT(G21:G25)>0),AVERAGE(G26:G30,G21:G25),"") -> 0.08733050094 | W22: Residual
A23: 12 | B23: 25.8 | C23: 0 | D23: 66.6 | E23: 40.8 | F23: =IF($E23="","",$E23*0.000264*9/($M$5*mf($R$4,$R$5))*$M$4) -> 0.06100566408 | G23: =IF($E23="","",$E23*0.000264*9/($M$5*mf($R$4,$R$5))) -> 0.09823778435 | X23: <-Additional
A24: 13 | B24: 24.5 | C24: 0 | D24: 66.2 | E24: 41.7 | F24: =IF($E24="","",$E24*0.000264*9/($M$5*mf($R$4,$R$5))*$M$4) -> 0.06235137726 | G24: =IF($E24="","",$E24*0.000264*9/($M$5*mf($R$4,$R$5))) -> 0.1004047943
A25: 14 | B25: 24.3 | C25: 0 | D25: 62 | E25: 37.7 | F25: =IF($E25="","",$E25*0.000264*9/($M$5*mf($R$4,$R$5))*$M$4) -> 0.0563704298 | G25: =IF($E25="","",$E25*0.000264*9/($M$5*mf($R$4,$R$5))) -> 0.09077363897
A26: 15 | B26: 24.2 | C26: 0 | D26: 60.1 | E26: 35.9 | F26: =IF($E26="","",$E26*0.000264*9/($M$5*mf($R$4,$R$5))*$M$4) -> 0.05367900344 | G26: =IF($E26="","",$E26*0.000264*9/($M$5*mf($R$4,$R$5))) -> 0.08643961907
A27: 16 | B27: 24.7 | C27: 0 | D27: 62.4 | E27: 37.7 | F27: =IF($E27="","",$E27*0.000264*9/($M$5*mf($R$4,$R$5))*$M$4) -> 0.0563704298 | G27: =IF($E27="","",$E27*0.000264*9/($M$5*mf($R$4,$R$5))) -> 0.09077363897
A28: 17 | B28: 24.3 | C28: 0 | D28: 59.2 | E28: 34.9 | F28: =IF($E28="","",$E28*0.000264*9/($M$5*mf($R$4,$R$5))*$M$4) -> 0.05218376658 | G28: =IF($E28="","",$E28*0.000264*9/($M$5*mf($R$4,$R$5))) -> 0.08403183024
A29: 18 | B29: 26.2 | C29: 0 | D29: 65.9 | E29: 39.7 | F29: =IF($E29="","",$E29*0.000264*9/($M$5*mf($R$4,$R$5))*$M$4) -> 0.05936090353 | G29: =IF($E29="","",$E29*0.000264*9/($M$5*mf($R$4,$R$5))) -> 0.09558921663
A30: 19 | B30: 24 | C30: 0 | D30: 62.8 | E30: 38.8 | F30: =IF($E30="","",$E30*0.000264*9/($M$5*mf($R$4,$R$5))*$M$4) -> 0.05801519035 | G30: =IF($E30="","",$E30*0.000264*9/($M$5*mf($R$4,$R$5))) -> 0.09342220668
F31: =IF($E31="","",$E31*0.000264*9/($M$5*mf($R$4,$R$5))*$M$4) ->  | G31: =IF($E31="","",$E31*0.000264*9/($M$5*mf($R$4,$R$5))) -> 
A32: 21 | B32: 27.3 | C32: 0 | D32: 69.4 | E32: 42.1 | F32: =IF($E32="","",$E32*0.000264*9/($M$5*mf($R$4,$R$5))*$M$4) -> 0.062949472 | G32: =IF($E32="","",$E32*0.000264*9/($M$5*mf($R$4,$R$5))) -> 0.1013679098
F33: =IF($E33="","",$E33*0.000264*9/($M$5*mf($R$4,$R$5))*$M$4) ->  | G33: =IF($E33="","",$E33*0.000264*9/($M$5*mf($R$4,$R$5))) -> 
A34: 23 | B34: 26 | C34: 0 | D34: 67.3 | E34: 41.3 | F34: =IF($E34="","",$E34*0.000264*9/($M$5*mf($R$4,$R$5))*$M$4) -> 0.06175328251 | G34: =IF($E34="","",$E34*0.000264*9/($M$5*mf($R$4,$R$5))) -> 0.09944167876
A35: 24 | B35: 24.3 | C35: 0 | D35: 38.7 | E35: 14.4 | F35: =IF($E35="","",$E35*0.000264*9/($M$5*mf($R$4,$R$5))*$M$4) -> 0.02153141085 | G35: =IF($E35="","",$E35*0.000264*9/($M$5*mf($R$4,$R$5))) -> 0.03467215918
F36: =IF($E36="","",$E36*0.000264*9/($M$5*mf($R$4,$R$5))*$M$4) ->  | G36: =IF($E36="","",$E36*0.000264*9/($M$5*mf($R$4,$R$5))) -> 
A37: 26 | B37: 26.8 | C37: 0 | D37: 71.5 | E37: 44.7 | F37: =IF($E37="","",$E37*0.000264*9/($M$5*mf($R$4,$R$5))*$M$4) -> 0.06683708785 | G37: =IF($E37="","",$E37*0.000264*9/($M$5*mf($R$4,$R$5))) -> 0.1076281608
A38: 27 | B38: 26.4 | C38: 0 | D38: 66.3 | E38: 39.9 | F38: =IF($E38="","",$E38*0.000264*9/($M$5*mf($R$4,$R$5))*$M$4) -> 0.0596599509 | G38: =IF($E38="","",$E38*0.000264*9/($M$5*mf($R$4,$R$5))) -> 0.0960707744
A39: 28 | B39: 28.3 | C39: 0 | D39: 71.4 | E39: 43.1 | F39: =IF($E39="","",$E39*0.000264*9/($M$5*mf($R$4,$R$5))*$M$4) -> 0.06444470887 | G39: =IF($E39="","",$E39*0.000264*9/($M$5*mf($R$4,$R$5))) -> 0.1037756987
F40: =IF($E40="","",$E40*0.000264*9/($M$5*mf($R$4,$R$5))*$M$4) ->  | G40: =IF($E40="","",$E40*0.000264*9/($M$5*mf($R$4,$R$5))) -> 
F41: =IF($E41="","",$E41*0.000264*9/($M$5*mf($R$4,$R$5))*$M$4) ->  | G41: =IF($E41="","",$E41*0.000264*9/($M$5*mf($R$4,$R$5))) -> 
A42: 31 | B42: 27.9 | C42: 0 | D42: 75.2 | E42: 47.3 | F42: =IF($E42="","",$E42*0.000264*9/($M$5*mf($R$4,$R$5))*$M$4) -> 0.0707247037 | G42: =IF($E42="","",$E42*0.000264*9/($M$5*mf($R$4,$R$5))) -> 0.1138884118
F43: =IF($E43="","",$E43*0.000264*9/($M$5*mf($R$4,$R$5))*$M$4) ->  | G43: =IF($E43="","",$E43*0.000264*9/($M$5*mf($R$4,$R$5))) -> 
F44: =IF($E44="","",$E44*0.000264*9/($M$5*mf($R$4,$R$5))*$M$4) ->  | G44: =IF($E44="","",$E44*0.000264*9/($M$5*mf($R$4,$R$5))) -> 
F45: =IF($E45="","",$E45*0.000264*9/($M$5*mf($R$4,$R$5))*$M$4) ->  | G45: =IF($E45="","",$E45*0.000264*9/($M$5*mf($R$4,$R$5))) -> 
E46: Avg. | F46: =IF(COUNT(F12:F45)>0,AVERAGE(F12:F45),"") -> 0.05773483344 | G46: =IF(COUNT(G12:G45)>0,AVERAGE(G12:G45),"") -> 0.09297074628

Sheet ASTM D 2995

Sheet Notes
A1: Description | B1: Link / Note
A2: Tack Calibration v0.1.xlsm w/ example data | B2: http://www.odot.org/materials/comn_asphss/EXAMPS_W_DATA/Tack Calibration v0.1 wData.xlsm
A3: Common Asphalt Spreadsheets | B3: https://www.ok.gov/odot/Doing_Business/Materials/comm_asphss.html
A4: Tack Coat Best Practices Workshop | B4: http://ltap.okstate.edu/OK_Tack_Coat.pdf
A5: NCHRP Report 712 | B5: http://onlinepubs.trb.org/onlinepubs/nchrp/nchrp_rpt_712.pdf
A7: APL for Binders | B7: http://www.odot.org/materials/htm-smap/11062p-BIT.html
A9: Next 3 and Historical: | B9: https://www.ok.gov/odot/Doing_Business/Materials/spec_grav.html
A10: SG & %Residual Asphalt Cements | B10: http://www.odot.org/materials/BITUM_TST_RPT/XLS/WEB_REPS/PGB/PGB_AVG_SP_GRAVS.xls
A11: SG & %Residual Cutbacks | B11: http://www.odot.org/materials/BITUM_TST_RPT/XLS/WEB_REPS/CBK/CBK_AVG_SP_GRAVS.xls
A12: SG & %Residual Emulsions | B12: http://www.odot.org/materials/BITUM_TST_RPT/XLS/WEB_REPS/EMU/EMU_AVG_SP_GRAVS.xls
A14: Note 1: | B14: Use the last 366 days or one year average percent residual for sheets Record 1 and Record 2.
A15: Note 2: | B15: Shot@ is the percentage of original/raw emulsion. For example, SS-1 diluted 1:1, 1 part emulsion / 2 parts total x 100 = 50% Shot@.
A16: Note 3: | B16: Volume corrections to 60°F.
A17: Note 4: | B17: Not all tack coat products are emulsions.
B19: Example below is from %residual link above for emulsions. It shows how %residual is found for SS-1 (P/S m00324) from 1/30/14 to 1/30/15.

Sheet Disclaimer
A1: By using this file, you are agreeing to this License Agreement:
A3: The Oklahoma Department of Transportation (ODOT) does not provide technical support with respect to these files. Read the following disclaimer for terms of use pior to using this file.
A6: ODOT makes no warranty of any kind, express or implied, with respect to any file. ODOT makes no warranty that any file is marketable or fit for any particular purpose. A description of a file shall not be deemed to create an express warranty that the file conforms to that description. You agree to accept the files in the format provided.
A9: You assume all risk and liability for any losses, damages, claims, or expenses resulting from the use or possession of any file.
A12: You agree to indemnify, defend, and hold harmless ODOT and its officers, agents, and employees from and against any and all claims, suits, losses, damages, or costs, including reasonable attorney's fees, arising from or by reason of your use or possession of any file. This indemnification shall survive your acceptance of any file.
A15: Revisions or additions may occur at any time. You agree to indemnify, defend, and hold harmless ODOT and its officers, agents, and employees from and against any and all claims, suits, losses, damages, or costs, including reasonable attorney's fees, arising from the use of outdated files. This indemnification shall survive your acceptance of any file.
A18: The files are copyrighted by ODOT and may not be resold without the express written consent of ODOT.
